bitfinex/quotes_SOLUSD_20250518
["timestamp","ask_amount","ask_price","bid_price","bid_amount"]
[1747555926850,34.3328583,171.41,171.32,47.02]
[1747555927153,18.64964886,171.38,171.32,47.02]
[1747555927730,18.64964886,171.38,171.33,3.27710753]
[1747555928045,18.64964886,171.38,171.34,5.83634878]
[1747555928219,18.64964886,171.38,171.33,3.27710753]
[1747555928220,15.68320944,171.37,171.33,3.27710753]
[1747555928425,18.64964886,171.35,171.33,3.27710753]
[1747555928649,34.3328583,171.34,171.33,3.27710753]
[1747555928925,18.64964886,171.34,171.33,3.27710753]
[1747555929149,18.64964886,171.33,171.31,4.09284987]
[1747555929347,28.4594979,171.33,171.31,4.09284987]
[1747555929730,1.6581,171.36,171.31,4.09284987]
[1747555929731,9.80984904,171.34,171.31,4.09284987]
[1747555929934,28.4594979,171.35,171.31,4.09284987]
[1747555930226,9.80984904,171.34,171.31,4.09284987]
[1747555930536,9.80984904,171.33,171.31,4.09284987]
[1747555930739,9.80984904,171.33,171.29,5.83794599]
[1747555931255,15.69472859,171.33,171.29,5.83794599]
[1747555931630,15.69472859,171.34,171.28,5.83839327]
[1747555931939,15.69472859,171.33,171.28,5.83839327]
[1747555932252,34.34437745,171.3,171.29,3.28195405]
[1747555933335,18.64964886,171.3,171.29,3.28195405]
[1747555933853,18.64964886,171.3,171.26,5.83903239]
[1747555934153,15.69472859,171.34,171.26,31.83903239]
[1747555934354,18.64964886,171.35,171.29,26.0]
[1747555934532,23.18852664,171.36,171.29,26.0]
[1747555934730,23.18852664,171.36,171.28,20.56]
[1747555934731,15.69472859,171.32,171.28,20.56]
[1747555934957,18.64964886,171.31,171.26,5.83903239]
[1747555935138,34.34437745,171.31,171.26,5.83903239]
[1747555935553,34.34437745,171.31,171.27,3.28409453]
[1747555935863,5.83771161,171.3,171.27,3.28409453]
[1747555936240,40.18184816,171.31,171.27,3.28409453]
[1747555937060,40.18184816,171.31,171.25,5.83937309]
[1747555937462,34.34911951,171.31,171.26,15.69947065]
[1747555937650,18.64964886,171.31,171.27,15.69947065]
[1747555938358,34.34911951,171.33,171.28,15.69947065]
[1747555938566,18.64964886,171.31,171.27,15.69947065]
[1747555939471,18.64964886,171.31,171.27,21.53814427]
[1747555939767,18.64964886,171.31,171.27,15.69947065]
[1747555939941,40.18660337,171.31,171.26,15.69947065]
[1747555941149,40.18660337,171.31,171.27,3.28535208]
[1747555941643,24.48633828,171.33,171.29,15.69947065]
[1747555944273,40.18580893,171.33,171.28,15.69947065]
[1747555946077,24.48633828,171.33,171.29,15.69947065]
[1747555947379,18.64964886,171.34,171.31,15.69947065]
[1747555948683,5.83650492,171.34,171.31,15.69947065]
[1747555950076,18.64964886,171.35,171.32,15.69947065]
[1747555950571,18.64964886,171.35,171.33,15.69947065]
[1747555951784,170.0350189,171.38,171.34,15.69947065]
[1747555952001,18.64964886,171.37,171.36,15.69947065]
[1747555952475,138.2,171.43,171.36,15.69947065]
[1747555952665,18.64964886,171.42,171.39,15.69947065]
[1747555953268,18.64964886,171.42,171.39,9.79839133]
[1747555953876,24.48336991,171.42,171.39,9.79839133]
[1747555954978,18.64964886,171.42,171.39,9.79839133]
[1747555957293,24.48331126,171.42,171.39,9.79839133]
[1747555957495,24.48331126,171.42,171.38,9.79839133]
[1747555957696,24.48331126,171.42,171.35,9.79839133]
[1747555957697,28.44804019,171.4,171.35,9.79839133]
[1747555957887,18.64964886,171.4,171.37,9.79839133]
[1747555958065,15.63205373,171.42,171.37,9.79839133]
[1747555958066,18.64964886,171.41,171.37,9.79839133]
[1747555958462,24.48368802,171.41,171.37,9.79839133]
[1747555960488,34.28207935,171.41,171.36,9.79839133]
[1747555960893,48.86699271,171.41,171.36,9.79839133]
[1747555961194,48.86699271,171.41,171.31,4.10353835]
[1747555961396,9.79839133,171.4,171.35,9.79839133]
[1747555962271,5.83430571,171.4,171.36,9.79839133]
[1747555963074,24.48372513,171.41,171.37,9.79839133]
[1747555963393,24.48372513,171.41,171.38,9.79839133]
[1747555963789,18.64964886,171.42,171.4,9.79839133]
[1747555963976,18.64964886,171.42,171.39,9.79839133]
[1747555964474,18.64964886,171.42,171.4,9.79839133]
[1747555965292,18.64964886,171.42,171.41,9.79839133]
[1747555965493,18.64964886,171.42,171.39,9.79839133]
[1747555965673,18.64964886,171.42,171.38,9.79839133]
[1747555966386,5.83396534,171.41,171.37,9.79839133]
[1747555966773,18.64964886,171.4,171.36,9.79839133]
[1747555966979,9.79839133,171.38,171.34,4.0944424]
[1747555967680,28.44804019,171.36,171.34,4.0944424]
[1747555967987,18.64964886,171.36,171.34,4.0944424]
[1747555968566,24.4855223,171.36,171.32,9.79839133]
[1747555969019,24.4855223,171.36,171.33,9.79839133]
[1747555970966,24.4855223,171.36,171.32,9.79839133]
[1747555971170,24.4855223,171.36,171.31,9.79839133]
[1747555971363,34.28391363,171.36,171.3,9.79839133]
[1747555971976,9.79839133,171.35,171.3,9.79839133]
[1747555972180,9.79839133,171.35,171.29,9.79839133]
[1747555972181,18.64964886,171.34,171.29,9.79839133]
[1747555972771,18.64964886,171.32,171.29,9.79839133]
[1747555974003,5.8371939,171.32,171.29,9.79839133]
[1747555976081,18.64964886,171.32,171.29,9.79839133]
[1747555977002,18.64964886,171.32,171.27,9.79839133]
[1747555977597,28.44804019,171.32,171.27,9.79839133]
[1747555978185,5.83737084,171.31,171.27,9.79839133]
[1747555978483,18.64964886,171.3,171.26,9.79839133]
[1747555978689,9.79839133,171.29,171.24,9.79839133]
[1747555979006,9.79839133,171.28,171.23,24.3344424]
[1747555979304,9.79839133,171.28,171.23,13.89283373]
[1747555979492,18.64964886,171.26,171.23,4.0944424]
[1747555980085,18.64964886,171.26,171.22,9.79839133]
[1747555980284,24.48900296,171.26,171.22,9.79839133]
[1747555980984,24.48838302,171.27,171.23,9.79839133]
[1747555981991,24.48838302,171.27,171.24,9.79839133]
[1747555982187,18.64964886,171.3,171.26,9.79839133]
[1747555982406,18.64964886,171.3,171.29,9.79839133]
[1747555982909,18.64964886,171.3,171.28,9.79839133]
[1747555983421,18.64964886,171.3,171.29,9.79839133]
[1747555983590,18.64964886,171.3,171.28,9.79839133]
[1747555984613,24.48737308,171.3,171.27,9.79839133]
[1747555985113,24.48737308,171.3,171.21,31.84067645]
[1747555985291,34.28576441,171.3,171.25,9.79839133]
[1747555985492,24.48737308,171.3,171.26,9.79839133]
[1747555985691,18.64964886,171.3,171.28,9.79839133]
[1747555985892,18.64964886,171.3,171.26,9.79839133]
[1747555986291,5.83779847,171.3,171.26,9.79839133]
[1747555986497,24.48704226,171.31,171.26,9.79839133]
[1747555986698,24.48704226,171.31,171.27,9.79839133]
[1747555988327,24.48704226,171.31,171.26,9.79839133]
[1747555989312,34.28543359,171.31,171.25,9.79839133]
[1747555989517,9.79839133,171.3,171.25,9.79839133]
[1747555990795,18.64964886,171.28,171.25,9.79839133]
[1747555991398,18.64964886,171.28,171.22,20.22]
[1747555991693,28.44804019,171.28,171.23,9.79839133]
[1747555991889,9.79839133,171.27,171.22,9.79839133]
[1747555992420,18.64964886,171.26,171.22,9.79839133]
[1747555992907,18.64964886,171.24,171.22,9.79839133]
[1747555993329,18.64964886,171.24,171.19,7.34805839]
[1747555993623,18.64964886,171.24,171.22,9.79839133]
[1747555993800,24.48884167,171.26,171.23,9.79839133]
[1747555994002,18.64964886,171.26,171.24,9.79839133]
[1747555995019,5.83878105,171.27,171.19,7.34805839]
[1747555995020,18.64964886,171.28,171.25,9.79839133]
[1747555995202,18.64964886,171.28,171.26,9.79839133]
[1747555995408,18.64964886,171.3,171.26,9.79839133]
[1747555995905,18.64964886,171.28,171.26,9.79839133]
[1747555996289,24.4870197,171.31,171.27,9.79839133]
[1747555996504,18.64964886,171.31,171.29,9.79839133]
[1747555996821,18.64964886,171.32,171.3,9.79839133]
[1747555998126,24.48604257,171.34,171.31,9.79839133]
[1747555998422,18.64964886,171.34,171.31,9.79839133]
[1747555998636,18.64964886,171.34,171.32,9.79839133]
[1747555999145,18.64964886,171.34,171.33,9.79839133]
[1747556000098,5.83537268,171.37,171.33,9.79839133]
[1747556000303,18.64964886,171.36,171.33,9.79839133]
[1747556000853,18.64964886,171.36,171.32,9.79839133]
[1747556000998,18.64964886,171.36,171.31,9.79839133]
[1747556001394,28.44804019,171.36,171.31,9.79839133]
[1747556001593,18.64964886,171.34,171.3,9.79839133]
[1747556001898,18.64964886,171.36,171.3,9.79839133]
[1747556002092,18.64964886,171.36,171.27,5.83866323]
[1747556002093,24.48599764,171.34,171.31,9.79839133]
[1747556002707,5.8361127,171.35,171.31,9.79839133]
[1747556002914,18.64964886,171.34,171.31,9.79839133]
[1747556003325,18.64964886,171.34,171.32,9.79839133]
[1747556003625,5.83575033,171.36,171.32,9.79839133]
[1747556003800,15.63414166,171.36,171.31,9.79839133]
[1747556005210,15.63414166,171.36,171.3,5.83770137]
[1747556005211,5.83575033,171.36,171.3,5.83770137]
[1747556005412,5.83575033,171.36,171.32,9.79839133]
[1747556005917,5.83575033,171.36,171.33,9.79839133]
[1747556006931,5.83575033,171.36,171.32,9.79839133]
[1747556007123,15.63414166,171.36,171.31,9.79839133]
[1747556007331,18.64964886,171.34,171.3,9.79839133]
[1747556008328,5.83668942,171.33,171.3,9.79839133]
[1747556009035,28.44804019,171.37,171.32,9.79839133]
[1747556009335,28.44804019,171.37,171.31,9.79839133]
[1747556009525,9.79839133,171.36,171.31,9.79839133]
[1747556009913,15.63405893,171.36,171.31,9.79839133]
[1747556010117,18.64964886,171.34,171.3,9.79839133]
[1747556010600,24.48619156,171.34,171.3,9.79839133]
[1747556012138,24.48619156,171.34,171.29,9.79839133]
[1747556012338,34.28458289,171.34,171.26,1.5762]
[1747556012537,9.79839133,171.33,171.28,9.79839133]
[1747556012836,28.44804019,171.3,171.25,13.89604695]
[1747556013040,9.79839133,171.29,171.25,4.09765562]
[1747556013638,28.44804019,171.3,171.25,9.79839133]
[1747556013838,5.83805242,171.29,171.25,9.79839133]
[1747556015942,5.83805242,171.29,171.24,9.79839133]
[1747556017240,15.63644375,171.29,171.24,9.79839133]
[1747556017740,18.64964886,171.28,171.25,9.79839133]
[1747556018431,18.64964886,171.28,171.26,9.79839133]
[1747556018634,18.64964886,171.28,171.24,9.79839133]
[1747556019541,24.48815874,171.28,171.24,9.79839133]
[1747556020420,24.48815874,171.28,171.25,9.79839133]
[1747556023435,24.48815874,171.28,171.24,9.79839133]
[1747556025025,24.48815874,171.28,171.21,26.04068302]
[1747556025026,34.28655007,171.28,171.23,9.79839133]
[1747556026151,18.64964886,171.26,171.22,9.79839133]
[1747556026544,5.83850988,171.28,171.24,9.79839133]
[1747556027052,15.63690121,171.28,171.24,9.79839133]
[1747556028249,5.83850988,171.28,171.24,9.79839133]
[1747556028446,15.63690121,171.28,171.24,9.79839133]
[1747556029656,5.83850988,171.28,171.24,9.79839133]
[1747556032437,15.63690121,171.28,171.23,9.79839133]
[1747556033150,5.83850988,171.28,171.24,9.79839133]
[1747556033734,15.63690121,171.28,171.23,9.79839133]
[1747556034179,5.83850988,171.28,171.23,9.79839133]
[1747556034351,15.63690121,171.28,171.23,9.79839133]
[1747556035059,5.83850988,171.28,171.23,9.79839133]
[1747556035266,15.63690121,171.28,171.23,9.79839133]
[1747556035470,5.83850988,171.28,171.24,9.79839133]
[1747556035693,18.64964886,171.27,171.24,9.79839133]
[1747556036952,18.64964886,171.27,171.23,9.79839133]
[1747556037459,24.48840365,171.27,171.23,9.79839133]
[1747556037767,1.5179,171.31,171.25,9.79839133]
[1747556037969,18.64964886,171.29,171.26,9.79839133]
[1747556038161,18.64964886,171.3,171.26,9.79839133]
[1747556038877,24.48736047,171.3,171.26,9.79839133]
[1747556039252,24.48736047,171.3,171.24,9.79839133]
[1747556039253,9.79839133,171.29,171.24,9.79839133]
[1747556039568,18.64964886,171.27,171.22,9.79839133]
[1747556039874,18.64964886,171.27,171.23,9.79839133]
[1747556040370,28.44804019,171.29,171.24,9.79839133]
[1747556040569,5.83839327,171.28,171.24,9.79839133]
[1747556040751,5.83839327,171.28,171.23,9.79839133]
[1747556042060,15.6367846,171.28,171.23,9.79839133]
[1747556043183,5.83839327,171.28,171.23,9.79839133]
[1747556043364,15.6367846,171.28,171.23,9.79839133]
[1747556044994,5.83839327,171.28,171.23,9.79839133]
[1747556045280,34.2857518,171.3,171.25,9.79839133]
[1747556045664,9.79839133,171.29,171.24,9.79839133]
[1747556046255,28.44804019,171.29,171.24,9.79839133]
[1747556046460,28.44804019,171.28,171.23,9.79839133]
[1747556047290,5.83873416,171.27,171.23,9.79839133]
[1747556047491,5.83873416,171.27,171.22,9.79839133]
[1747556048165,5.83873416,171.27,171.23,9.79839133]
[1747556049593,44.64964886,171.28,171.24,9.79839133]
[1747556049594,5.83854031,171.28,171.24,9.79839133]
[1747556050487,18.64964886,171.29,171.25,9.79839133]
[1747556050688,164.2,171.3,171.27,9.79839133]
[1747556050882,18.64964886,171.3,171.28,9.79839133]
[1747556051569,35.79839133,171.33,171.28,9.79839133]
[1747556051777,18.64964886,171.32,171.28,9.79839133]
[1747556051976,18.64964886,171.33,171.29,9.79839133]
[1747556052988,18.64964886,171.33,171.3,9.79839133]
[1747556053365,24.48637185,171.33,171.29,9.79839133]
[1747556053864,18.64964886,171.33,171.29,9.79839133]
[1747556054090,18.64964886,171.33,171.3,3.28919017]
[1747556054460,24.48638003,171.33,171.3,3.28919017]
[1747556054893,34.28477136,171.33,171.3,3.28919017]
[1747556056189,34.28477136,171.33,171.28,9.79839133]
[1747556056366,9.79839133,171.32,171.27,9.79839133]
[1747556056572,18.64964886,171.28,171.26,4.09765562]
[1747556057280,9.79839133,171.28,171.26,4.09765562]
[1747556057480,15.63696406,171.28,171.26,4.09765562]
[1747556058991,18.64964886,171.26,171.24,3.29132335]
[1747556059875,24.48873321,171.26,171.24,3.29132335]
[1747556062694,34.28712454,171.26,171.24,3.29132335]
[1747556063190,9.79839133,171.25,171.24,3.29132335]
[1747556063893,15.63780738,171.25,171.24,3.29132335]
[1747556065393,41.63780738,171.25,171.24,3.29132335]
[1747556065778,18.64964886,171.24,171.22,4.09765562]
[1747556065981,9.79839133,171.23,171.22,4.09765562]
[1747556067896,9.79839133,171.23,171.19,3.29132335]
[1747556069374,15.63852989,171.23,171.2,3.29132335]
[1747556069680,9.79839133,171.21,171.2,3.29132335]
[1747556069882,15.63917165,171.21,171.2,3.29132335]
[1747556070192,15.63917165,171.21,171.18,4.09765562]
[1747556070193,44.64964886,171.19,171.18,4.09765562]
[1747556070396,54.44804019,171.19,171.18,4.09765562]
[1747556070873,26.0,171.19,171.18,4.09765562]
[1747556071580,26.0,171.22,171.18,19.73774768]
[1747556071977,9.79839133,171.22,171.18,5.84170073]
[1747556072276,26.0,171.22,171.18,5.84170073]
[1747556072491,35.8218654,171.22,171.18,5.84170073]
[1747556075202,9.8218654,171.22,171.17,9.93980085]
[1747556075705,9.8218654,171.22,171.17,24.54516393]
[1747556075900,9.8218654,171.23,171.17,24.54516393]
[1747556076195,9.8218654,171.24,171.17,24.54516393]
[1747556076403,26.0,171.26,171.17,24.54516393]
[1747556076588,9.8218654,171.24,171.17,24.54516393]
[1747556077902,9.8218654,171.24,171.17,9.93980085]
[1747556078081,9.8218654,171.23,171.17,9.93980085]
[1747556082000,15.66197483,171.23,171.17,9.93980085]
[1747556082585,15.66197483,171.23,171.17,30.09980085]
[1747556082893,9.8218654,171.23,171.17,30.09980085]
[1747556083198,9.8218654,171.23,171.18,3.28813375]
[1747556083404,9.8218654,171.22,171.18,3.28813375]
[1747556084235,9.8218654,171.22,171.18,9.12980294]
[1747556084906,9.8218654,171.22,171.19,3.28813375]
[1747556085901,9.8218654,171.21,171.19,3.28813375]
[1747556086407,9.8218654,171.21,171.18,3.28813375]
[1747556086594,9.8218654,171.22,171.18,3.28813375]
[1747556086905,28.47151426,171.23,171.18,9.12989924]
[1747556087407,18.64964886,171.23,171.18,9.12989924]
[1747556087614,9.8218654,171.23,171.18,9.12989924]
[1747556087903,9.8218654,171.23,171.19,3.28813375]
[1747556088218,9.8218654,171.23,171.19,9.12958358]
[1747556089623,9.8218654,171.23,171.2,3.28813375]
[1747556091620,9.8218654,171.23,171.21,3.28813375]
[1747556092712,9.8218654,171.23,171.19,5.84144983]
[1747556092896,9.8218654,171.24,171.19,5.84144983]
[1747556093397,9.8218654,171.24,171.2,3.28752074]
[1747556093990,9.8218654,171.23,171.2,3.28752074]
[1747556094398,9.8218654,171.24,171.2,3.28752074]
[1747556094599,9.8218654,171.24,171.2,9.12840545]
[1747556094798,9.8218654,171.24,171.21,3.28752074]
[1747556094997,26.0,171.26,171.21,3.28752074]
[1747556095200,9.8218654,171.24,171.21,3.28752074]
[1747556096813,9.8218654,171.24,171.21,9.12823371]
[1747556098602,9.8218654,171.24,171.22,3.28752074]
[1747556099917,9.8218654,171.24,171.22,9.12794282]
[1747556100213,9.8218654,171.25,171.22,9.12794282]
[1747556100400,9.8218654,171.27,171.22,9.12794282]
[1747556100721,9.8218654,171.25,171.22,9.12794282]
[1747556100915,9.8218654,171.26,171.22,9.12794282]
[1747556102120,50.48809366,171.28,171.22,9.12794282]
[1747556102121,9.8218654,171.27,171.22,9.12794282]
[1747556102293,9.8218654,171.27,171.23,3.28752074]
[1747556102618,9.8218654,171.28,171.23,3.28752074]
[1747556102915,9.8218654,171.28,171.23,23.36752074]
[1747556103290,9.8218654,171.28,171.23,43.46752074]
[1747556103522,9.8218654,171.28,171.24,5.83975706]
[1747556103914,9.8218654,171.26,171.25,3.28752074]
[1747556105416,9.8218654,171.26,171.24,3.28752074]
[1747556105793,9.8218654,171.25,171.24,3.28752074]
[1747556105990,9.8218654,171.26,171.24,9.1272778]
[1747556106414,9.8218654,171.26,171.25,3.28752074]
[1747556106737,9.8218654,171.28,171.25,3.28752074]
[1747556107019,64.31364052,171.3,171.25,3.28752074]
[1747556107221,9.8218654,171.29,171.25,3.28752074]
[1747556107418,9.8218654,171.29,171.26,5.83907509]
[1747556108319,9.8218654,171.29,171.27,3.28752074]
[1747556108921,9.8218654,171.28,171.27,3.28752074]
[1747556109999,9.8218654,171.28,171.27,9.1262549]
[1747556110200,9.8218654,171.29,171.27,9.1262549]
[1747556110400,9.8218654,171.29,171.27,3.28752074]
[1747556111026,9.8218654,171.28,171.27,3.28752074]
[1747556111617,28.47151426,171.28,171.27,3.28752074]
[1747556112329,18.64964886,171.27,171.25,4.09765562]
[1747556112512,9.8218654,171.26,171.25,4.09765562]
[1747556112710,28.47151426,171.26,171.25,4.09765562]
[1747556114103,34.31058935,171.26,171.25,4.09765562]
[1747556114522,18.64964886,171.25,171.21,3.28752074]
[1747556114722,9.8218654,171.22,171.21,3.28752074]
[1747556115828,9.8218654,171.22,171.19,3.28752074]
[1747556116027,9.8218654,171.21,171.19,3.28752074]
[1747556116523,9.8218654,171.2,171.19,3.28752074]
[1747556118728,9.8218654,171.2,171.18,3.28752074]
[1747556118930,9.8218654,171.19,171.18,3.28752074]
[1747556120332,138.2,171.26,171.18,3.28752074]
[1747556120641,9.8218654,171.22,171.18,3.28752074]
[1747556121143,9.8218654,171.21,171.18,9.12930154]
[1747556121516,9.8218654,171.21,171.18,3.28752074]
[1747556121716,24.48906491,171.25,171.18,3.28752074]
[1747556121717,9.8218654,171.2,171.19,3.28752074]
[1747556122019,24.48906491,171.25,171.19,3.28752074]
[1747556122020,9.8218654,171.21,171.19,3.28752074]
[1747556122737,18.64964886,171.25,171.19,9.12892785]
[1747556122942,9.8218654,171.23,171.19,9.12892785]
[1747556123143,9.8218654,171.23,171.2,3.28752074]
[1747556124145,9.8218654,171.24,171.2,9.12858869]
[1747556124351,9.8218654,171.25,171.2,9.12858869]
[1747556124547,9.8218654,171.25,171.21,20.04]
[1747556125351,26.02915032,171.28,171.21,20.04]
[1747556125352,9.8218654,171.24,171.21,20.04]
[1747556125760,9.8218654,171.23,171.21,20.04]
[1747556125963,9.8218654,171.22,171.21,20.04]
[1747556128762,9.8218654,171.22,171.2,3.28752074]
[1747556128961,18.64964886,171.24,171.2,3.28752074]
[1747556128962,5.84000519,171.24,171.2,3.28752074]
[1747556129165,9.8218654,171.21,171.2,3.28752074]
[1747556130047,9.8218654,171.21,171.18,25.86168371]
[1747556130233,9.8218654,171.21,171.18,20.02]
[1747556130436,9.8218654,171.21,171.18,25.86173951]
[1747556131675,18.64964886,171.23,171.18,25.86173951]
[1747556131830,24.41906191,171.27,171.18,25.86173951]
[1747556131831,9.8218654,171.27,171.18,25.86173951]
[1747556132172,9.8218654,171.23,171.18,25.86173951]
[1747556133137,9.8218654,171.22,171.18,25.86173951]
[1747556134541,9.8218654,171.21,171.18,25.86173951]
[1747556135143,9.8218654,171.2,171.18,25.86171629]
[1747556135840,9.8218654,171.2,171.18,20.02]
[1747556136466,9.8218654,171.19,171.17,20.04]
[1747556136670,9.8218654,171.18,171.17,20.04]
[1747556138455,9.8218654,171.18,171.13,25.84351078]
[1747556138655,9.8218654,171.16,171.13,25.84351078]
[1747556138861,9.8218654,171.17,171.13,25.84351078]
[1747556139762,5.84159036,171.19,171.13,25.84351078]
[1747556139960,9.8218654,171.16,171.13,25.84351078]
[1747556140150,9.8218654,171.17,171.13,25.84351078]
[1747556141656,5.84148053,171.19,171.13,25.84351078]
[1747556141850,9.8218654,171.17,171.13,25.84351078]
[1747556142736,9.8218654,171.16,171.13,20.0]
[1747556143362,9.8218654,171.15,171.12,25.88376125]
[1747556143663,5.84185462,171.18,171.12,25.88385196]
[1747556143857,9.8218654,171.15,171.12,25.88385196]
[1747556144035,9.8218654,171.15,171.12,20.04]
[1747556144238,9.8218654,171.14,171.12,20.04]
[1747556145364,9.8218654,171.13,171.12,20.04]
[1747556148239,9.8218654,171.13,171.09,25.84472321]
[1747556148462,24.49179409,171.17,171.09,25.84472321]
[1747556148659,9.8218654,171.12,171.09,25.84472321]
[1747556148963,18.64964886,171.17,171.09,25.84472321]
[1747556149172,9.8218654,171.16,171.09,25.84472321]
[1747556149544,5.84137348,171.2,171.1,26.0]
[1747556149748,9.8218654,171.18,171.1,26.0]
[1747556149944,9.8218654,171.18,171.09,40.45691562]
[1747556150170,9.8218654,171.18,171.1,26.0]
[1747556150938,24.49053106,171.21,171.11,20.45467827]
[1747556151163,9.8218654,171.19,171.11,20.45467827]
[1747556151370,6.5538,171.23,171.14,26.0]
[1747556151371,18.64964886,171.23,171.14,26.0]
[1747556151553,18.64964886,171.25,171.15,39.96]
[1747556151868,139.7451,171.26,171.15,39.96]
[1747556152167,9.8218654,171.25,171.15,39.96]
[1747556152355,9.8218654,171.24,171.15,39.96]
[1747556153038,139.7451,171.26,171.15,39.96]
[1747556153244,1.5451,171.3,171.18,26.0]
[1747556153455,9.8218654,171.27,171.18,26.0]
[1747556153642,9.8218654,171.24,171.17,6.4378]
[1747556153841,9.8218654,171.22,171.17,26.0]
[1747556154063,9.8218654,171.2,171.13,8.0463]
[1747556154269,9.8218654,171.19,171.16,19.98]
[1747556155266,9.8218654,171.18,171.16,19.98]
[1747556155960,5.84157886,171.19,171.16,19.98]
[1747556156150,9.8218654,171.18,171.16,19.98]
[1747556157491,9.8218654,171.17,171.15,19.98]
[1747556157659,5.84151324,171.19,171.11,45.80412437]
[1747556157660,9.8218654,171.16,171.11,45.80412437]
[1747556158175,18.64964886,171.18,171.11,45.80412437]
[1747556158672,9.8218654,171.16,171.11,45.80412437]
[1747556159166,18.64964886,171.22,171.11,45.80412437]
[1747556159358,9.8218654,171.18,171.11,45.80412437]
[1747556160275,9.8218654,171.19,171.14,5.84316933]
[1747556160458,9.8218654,171.18,171.13,9.96697829]
[1747556160647,9.8218654,171.17,171.13,4.12354439]
[1747556160846,9.8218654,171.19,171.13,9.96698598]
[1747556161078,7.9734,171.23,171.13,9.96698598]
[1747556161252,1.5451,171.23,171.13,24.57576293]
[1747556161441,9.8218654,171.21,171.13,24.57576293]
[1747556161647,9.8218654,171.23,171.13,24.57576293]
[1747556161851,16.0102654,171.27,171.16,26.0]
[1747556161852,6.1884,171.27,171.16,26.0]
[1747556162091,9.8218654,171.26,171.18,5.84180394]
[1747556162253,9.8218654,171.26,171.19,3.29299445]
[1747556162455,9.8218654,171.25,171.19,3.29299445]
[1747556162668,9.8218654,171.22,171.2,39.94]
[1747556162872,24.48873736,171.26,171.2,39.94]
[1747556163062,9.8218654,171.24,171.2,39.94]
[1747556163269,9.8218654,171.25,171.2,39.94]
[1747556163475,9.8218654,171.26,171.2,39.94]
[1747556164683,9.8218654,171.25,171.21,5.84078032]
[1747556164978,9.8218654,171.25,171.21,13.2469445]
[1747556166276,9.8218654,171.26,171.21,13.2469445]
[1747556166456,26.01728463,171.28,171.22,3.29299445]
[1747556166798,9.8218654,171.26,171.22,3.29299445]
[1747556167082,32.1884,171.31,171.23,5.84009811]
[1747556167083,5.83771161,171.3,171.23,5.84009811]
[1747556167284,9.8218654,171.28,171.23,5.84009811]
[1747556167954,9.8218654,171.27,171.23,5.84009811]
[1747556168375,9.8218654,171.27,171.24,3.29299445]
[1747556169882,9.8218654,171.27,171.25,3.29299445]
[1747556170677,5.8383565,171.29,171.25,3.29299445]
[1747556170872,9.8218654,171.27,171.24,5.83975308]
[1747556171071,9.8218654,171.27,171.22,4.11316973]
[1747556171072,9.8218654,171.27,171.23,5.84005209]
[1747556172887,9.8218654,171.27,171.24,3.28692156]
[1747556173585,9.8218654,171.28,171.24,9.12661296]
[1747556174375,9.8218654,171.28,171.25,3.28692156]
[1747556175878,9.8218654,171.29,171.25,9.12629411]
[1747556176595,15.65999063,171.29,171.26,3.28692156]
[1747556176801,9.8218654,171.28,171.26,3.28692156]
[1747556177592,5.83771161,171.3,171.26,3.28692156]
[1747556177792,9.8218654,171.29,171.26,3.28692156]
[1747556178181,9.8218654,171.29,171.27,3.28692156]
[1747556178988,9.8218654,171.28,171.27,3.28692156]
[1747556181414,5.8378017,171.3,171.27,3.28692156]
[1747556181591,9.8218654,171.28,171.27,3.28692156]
[1747556183508,138.2,171.33,171.27,9.12552719]
[1747556183808,9.8218654,171.32,171.27,9.12552719]
[1747556183998,9.8218654,171.31,171.27,9.12552719]
[1747556184390,9.8218654,171.31,171.27,3.28692156]
[1747556184592,9.8218654,171.3,171.27,3.28692156]
[1747556184790,9.8218654,171.3,171.28,3.28692156]
[1747556184991,9.8218654,171.29,171.28,3.28692156]
[1747556186202,9.8218654,171.3,171.28,3.28692156]
[1747556186401,9.8218654,171.31,171.28,3.28692156]
[1747556186589,9.8218654,171.31,171.29,3.28692156]
[1747556186790,9.8218654,171.3,171.29,3.28692156]
[1747556187695,9.8218654,171.31,171.29,3.28692156]
[1747556188591,9.8218654,171.3,171.26,9.95213547]
[1747556188781,9.8218654,171.3,171.26,4.11316973]
[1747556188983,64.29337966,171.27,171.26,4.11316973]
[1747556189482,18.64964886,171.26,171.21,8.22633947]
[1747556189802,9.8218654,171.22,171.16,5.84248656]
[1747556190198,18.64964886,171.26,171.16,5.84248656]
[1747556190397,9.8218654,171.23,171.17,3.28920969]
[1747556190907,9.8218654,171.23,171.18,5.84180394]
[1747556191691,9.8218654,171.22,171.18,5.84180394]
[1747556192002,9.8218654,171.21,171.17,29.05126063]
[1747556192490,9.8218654,171.22,171.17,29.05126063]
[1747556193018,9.8218654,171.22,171.19,3.28920969]
[1747556194003,18.64964886,171.27,171.19,9.13057399]
[1747556194325,9.8218654,171.23,171.19,9.13057399]
[1747556194828,18.64964886,171.27,171.2,3.28920969]
[1747556194982,18.64964886,171.27,171.21,5.84078032]
[1747556195184,14.0218247,171.29,171.21,5.84078032]